[Event "55th Iranian-ch Men Final 2022"]
[Site "Iran"]
[Date "2022.06.21"]
[Round "9.5"]
[White "Mousavi, Seyed Khalil"]
[Black "Daghli, Arash"]
[Result "1-0"]
[ECO "C77"]
[WhiteElo "2524"]
[BlackElo "2441"]
[Annotator "TA"]
[PlyCount "72"]
[EventDate "2022.06.15"]
[EventType "tourn"]
[EventCountry "IRI"]
[SourceTitle "playchess.com"]
[Source "ChessBase"]
[SourceQuality "1"]
[TimeControl "40/5400+30:1800+30"]

{[%evp 13,72,0,0,0,22,0,13,0,0,0,0,0,11,-1,2,-10,-5,0,-7,-17,33,16,36,22,76,52,28,40,34,16,43,32,129,118,127,117,128,120,116,114,119,125,134,121,225,104,107,104,120,68,472,477,471,422,448,428,425,418,29988,1087,2400]} 1. e4 {[%emt 0:00:41]} e5 {[%emt 0:00:46]} 2. Nf3 {[%emt 0:00:46]} Nc6 {[%emt 0:00:09]} 3. Bb5 {[%emt 0:00:12]} a6 {[%emt 0:01:01]} 4. Ba4 {[%emt 0:00:12]} Nf6 {[%emt 0:01:30]} 5. d3 {[%emt 0:01:23]} d6 {[%emt 0:00:55]} 6. c4 {[%emt 0:03:01]} g6 {[%emt 0:00:45] The main line 6...g6 scores better than 6...Be7.} 7. Nc3 {[%emt 0:01:57]} Bg7 {[%emt 0:00:01]} 8. Nd5 {[%emt 0:01:54] C77: Ruy Lopez: 3...a6 4 Ba4 Nf6, unusual lines.} h6 {[%emt 0:12:15]} 9. O-O {[%emt 0:06:16]} (9. Nb4 $5 {[%cal Rb4c6]}) 9... O-O {[%emt 0:00:38] [#]} 10. h3 $146 {[%emt 0:01:12] The position is equal.} ({Predecessor:} 10. Be3 Bd7 11. Rc1 Kh7 12. Re1 Ng4 13. h3 Nxe3 14. fxe3 f5 15. Nd2 f4 16. Rf1 fxe3 17. Nxe3 {0-1 (85) Priyanka,K (2218)-Mohota,N (2195) Tornelo INT 2021}) 10... Rb8 {[%emt 0:12:04]} 11. Bc2 {[%emt 0:13:12]} b5 {[%emt 0:02:09]} 12. Be3 {[%emt 0:04:08]} Kh7 {[%emt 0:15:10]} 13. Qc1 {[%emt 0:11:49]} Bd7 {[%emt 0:02:07]} 14. Rd1 {[%emt 0:09:50]} Nh5 {[%emt 0:19:13]} 15. cxb5 {[%emt 0:09:15]} axb5 {[%emt 0:00:22]} 16. a4 {[%emt 0:03:06][%cal Ba2a4,Ba4a5,Ba5a6][%mdl 32]} Nf6 {[%emt 0:16:08]} (16... Nd4 $11 17. Bxd4 exd4) 17. a5 {[%emt 0:05:44]} Ra8 {[%emt 0:03:00]} 18. Qd2 {[%emt 0:03:10]} b4 {[%emt 0:01:18]} (18... Nxd5 $11 19. exd5 Nd4 20. Nxd4 exd4) 19. a6 {[%emt 0:04:33] And now Bb3 would win. 0x0.001e651e0e28dp-1022s more active pieces.} Nxd5 {[%emt 0:00:29]} 20. exd5 {[%emt 0:00:06]} Ne7 {[%emt 0:00:06]} 21. Bb3 {[%emt 0:00:42]} Qc8 $1 {[%emt 0:01:55]} 22. Rdc1 $36 {[%emt 0:04:33][%mdl 2048] White has some pressure.} (22. Qxb4 Rxa6 23. Rxa6 Qxa6 $15) 22... c5 {[%emt 0:05:43]} (22... Nf5 $1 $14) 23. dxc6 $1 $16 {[%emt 0:00:33]} Bxc6 {[%emt 0:00:01]} 24. Qxb4 {[%emt 0:02:06]} Rxa6 {[%emt 0:00:16]} 25. Rxa6 {[%emt 0:03:43]} ({Don't take} 25. Qxd6 $6 Rxa1 26. Rxa1 Qb7 27. Nxe5 Bxg2 $14) 25... Qxa6 {[%emt 0:00:01]} 26. Qxd6 {[%emt 0:00:24]} Qb7 {[%emt 0:00:01][%csl LRb3,LRf3] [#]} 27. Nd2 $1 {[%emt 0:00:44]} ({Resist} 27. Nxe5 $6 Bxg2 28. Nd7 Bxh3 29. Nxf8+ Bxf8 $14) 27... f5 {[%emt 0:02:33]} (27... Bxg2 $2 28. Rc7 Nf5 29. Rxb7 $18) 28. f3 {[%emt 0:01:59]} Rc8 {[%emt 0:02:47]} (28... Rf6 $16 {is a better defense.} 29. Qxe5 Rf8) 29. Ra1 {[%emt 0:01:55]} (29. Be6 $18 {and White stays clearly on top.} Rf8 30. Ra1) 29... Qc7 {[%emt 0:00:51]} 30. Qe6 {[%emt 0:00:27]} Bb7 {[%emt 0:00:38]} 31. Bf2 {[%emt 0:02:23]} (31. Bb6 $16 Qc6 32. Qxc6 (32. Qxe7 Qxb6+ 33. Kh1 Rc7 $11) 32... Bxc6 33. Ra5) 31... Rd8 $2 {[%emt 0:00:01][%mdl 8192] A mistake that costs the game.} (31... Qd8 $14) 32. Bb6 $18 {[%emt 0:00:51]} Qd6 {[%emt 0:00:42]} 33. Bxd8 {[%emt 0:00:28]} Qxd8 {[%emt 0:00:00]} 34. Kh1 {[%emt 0:00:48] [#] Threatens to win with Ra7.} Bc8 {[%emt 0:01:05]} 35. Qf7 {[%emt 0:00:43] aiming for Ra7.} Qxd3 {[%emt 0:00:47]} (35... Bb7 $18 36. d4 h5 37. dxe5 Qxd2 38. Qxe7 Bxf3 39. gxf3 Qxb2) 36. Qxe7 {[%emt 0:00:23]} (36. Ra7 $142 Qd7 37. Rxd7 Bxd7 38. Qxe7 Bc6 39. Qd8 h5 40. Bg8+ Kh8 41. Bf7+ Kh7 42. Qg5) 36... Qxd2 {[%emt 0:00:04] Weighted Error Value: White=0.11 (very precise) /Black=0.64} 1-0

[Event "55th Iranian-ch Men Final 2022"]
[Site "Iran"]
[Date "2022.06.21"]
[Round "9.6"]
[White "Atakhan, Abtin"]
[Black "Daneshvar, Bardiya"]
[Result "0-1"]
[ECO "D43"]
[WhiteElo "2358"]
[BlackElo "2486"]
[Annotator "TA"]
[PlyCount "63"]
[EventDate "2022.06.15"]
[EventType "tourn"]
[EventCountry "IRI"]
[SourceTitle "playchess.com"]
[Source "ChessBase"]
[SourceQuality "1"]
[TimeControl "40/5400+30:1800+30"]

{[%evp 13,63,16,22,10,12,16,31,0,-1,-22,-7,-34,0,7,2,8,1,-47,-53,-54,0,-142,-137,-245,-227,-314,-312,-338,-341,-329,-291,-299,-285,-252,-286,-447,-452,-449,-451,-443,-447,-454,-449,-582,-513,-558,-541,-553,-489,-657,-660,-581]} 1. d4 {[%emt 0:00:30]} Nf6 {[%emt 0:00:07]} 2. c4 {[%emt 0:00:30]} e6 {[%emt 0:00:04]} 3. Nf3 {[%emt 0:00:17]} d5 {[%emt 0:00:10]} 4. Nc3 {[%emt 0:00:14]} c6 {[%emt 0:00:05]} 5. Bg5 {[%emt 0:00:07]} h6 {[%emt 0:00:06]} 6. Bxf6 {[%emt 0:00:05]} Qxf6 {[%emt 0:00:05]} 7. e3 {[%emt 0:00:07]} g6 {[%emt 0:00:53]} 8. Bd3 {[%emt 0:00:15] D43: Semi-Slav: 5 Bg5 h6.} Bg7 {[%emt 0:00:10]} 9. O-O {[%emt 0:00:07]} Qe7 {[%emt 0:02:59]} 10. Rc1 {[%emt 0:00:18] White is slightly better.} O-O {[%emt 0:00:44] [#]} 11. e4 $146 {[%emt 0:02:25]} ({Predecessor:} 11. Qe2 Nd7 12. Rfd1 dxc4 13. Bxc4 e5 14. d5 e4 15. Nd2 Bxc3 16. d6 Qe5 17. Rxc3 {1-0 (56) Harutyunian,T (2550)-Yoo,C (2548) Saint Louis 2022}) 11... dxe4 $1 {[%emt 0:05:09]} 12. Nxe4 {[%emt 0:01:31]} Rd8 {[%emt 0:05:36]} (12... f5 $5 {[%cal Rf5e4]}) 13. c5 {[%emt 0:00:15]} Bxd4 {[%emt 0:05:38]} 14. Nxd4 {[%emt 0:02:53]} Rxd4 {[%emt 0:00:58]} 15. Qe2 {[%emt 0:00:26]} (15. Qd2 $11 {is superior.}) 15... e5 $1 $15 {[%emt 0:06:41]} 16. Nd6 {[%emt 0:36:52] Prevents Bf5.} Nd7 {[%emt 0:16:21]} (16... Be6 $15) 17. Bc4 {[%emt 0:04:33] Black continues to play with concentration.} (17. b4 $11 {keeps the balance.}) 17... Nxc5 $17 {[%emt 0:07:56][%cal Bd7c5,Bc5a4,Ba4b6][%mdl 32]} 18. Nxf7 {[%emt 0:03:38]} (18. Bxf7+ $17 {was called for.} Kg7 19. Nxc8 Rxc8 20. Bc4) 18... b5 $19 {[%emt 0:03:02]} 19. Qc2 {[%emt 0:27:16]} Kg7 {[%emt 0:05:34]} (19... Rxc4 20. Qxg6+ Kf8 21. Nxh6 $11 (21. Rxc4 bxc4 22. Nxh6 Qe6 $15)) 20. Be2 {[%emt 0:00:10]} Rd5 {[%emt 0:04:59]} (20... Qxf7 21. Qxc5 Bd7 22. f4 $14 (22. Qxe5+ Qf6 $11)) (20... Nb7 $2 21. Nxe5 Qxe5 22. Qxc6 $19) 21. b4 {[%emt 0:10:56]} Bf5 {[%emt 0:03:36]} (21... Qxf7 22. bxc5 Rd4 23. f4 $17) 22. Qc3 {[%emt 0:00:47][%cal Oe2f3]} Na4 {[%emt 0:00:50]} (22... Kxf7 23. bxc5 Rd4 24. Bf3 $17) 23. Qxc6 {[%emt 0:00:07]} Nb6 {[%emt 0:00:04] [#] White must now prevent ...Rc8.} 24. Rc5 {[%emt 0:07:35]} (24. Nxh6 $142 Kxh6 25. Qc3) 24... Rc8 {[%emt 0:01:48] Black is clearly winning.} ({Not} 24... Qxf7 $2 25. Qxb5 Rad8 26. Re1 $19) 25. Qxb5 {[%emt 0:00:35]} Rcxc5 {[%emt 0:00:28]} ({But not} 25... Qxf7 $2 26. Qa5 $19) 26. bxc5 {[%emt 0:00:16]} Rxc5 {[%emt 0:00:15]} ({Wrong is} 26... Qxf7 $2 27. Rc1 $19) 27. Qb4 {[%emt 0:00:13]} Kxf7 {[%emt 0:00:09]} 28. g4 {[%emt 0:00:06]} Bd7 {[%emt 0:01:40]} 29. f4 {[%emt 0:00:17]} e4 {[%emt 0:02:20]} 30. Qd4 {[%emt 0:01:20]} Rc8 {[%emt 0:00:52]} 31. Kh1 {[%emt 0:00:37]} Qc5 {[%emt 0:00:19]} 32. Qd1 {[%emt 0:00:36] Weighted Error Value: White=0.50/Black=0.09 (flawless)} 0-1

[Event "55th Iranian-ch Men Final 2022"]
[Site "Iran"]
[Date "2022.06.21"]
[Round "9.7"]
[White "Darini, Pouria"]
[Black "Khamisi, S Jafar"]
[Result "1-0"]
[ECO "C27"]
[WhiteElo "2431"]
[BlackElo "2118"]
[Annotator "TA"]
[PlyCount "110"]
[EventDate "2022.06.15"]
[EventType "tourn"]
[EventCountry "IRI"]
[SourceTitle "playchess.com"]
[Source "ChessBase"]
[SourceQuality "1"]
[TimeControl "40/5400+30:1800+30"]

{[%evp 10,110,-4,-16,0,0,0,-20,0,0,0,-6,0,-6,0,0,12,-5,0,0,0,0,4,-5,0,0,0,0,0,0,0,0,15,0,0,0,82,14,22,0,10,0,68,68,63,66,62,56,67,68,67,60,66,32,34,13,112,112,112,112,112,43,112,112,112,112,112,112,116,0,116,10,219,219,219,219,282,282,259,257,371,362,410,414,408,405,427,416,590,594,561,547,841,848,821,963,881,687,1138,1119,29983,29980,1702]} 1. e4 {[%emt 0:00:26]} e5 {[%emt 1:31:00]} 2. Bc4 Nf6 {[%emt 0:00:30]} 3. d3 {[%emt 1:31:34]} Bc5 {[%emt 0:00:00]} 4. Nc3 {[%emt 0:00:00]} c6 {[%emt 0:00:00]} 5. Nf3 {[%emt 0:00:00]} d6 {[%emt 0:00:00]} 6. O-O {[%emt 0:00:00]} O-O {[%emt 0:00:00] C27: Vienna Game: 2...Nf6 3 Bc4 Nxe4.} 7. h3 {[%emt 0:00:00]} Re8 {[%emt 0:00:00]} 8. a3 {[%emt 0:00:00] [#]} Bb6 $146 {[%emt 0:00:00] The position is equal.} ({Predecessor:} 8... a5 9. Ba2 Nbd7 10. Ne2 h6 11. Ng3 d5 12. Re1 Qb6 13. Qd2 a4 14. Re2 Qc7 {0-1 (32) Bourgault,J-Foersti,E (2124) ICCF email 2018}) 9. Re1 {[%emt 0:00:00]} Nbd7 {[%emt 0:00:00]} 10. Be3 {[%emt 0:00:00]} Bxe3 {[%emt 0:00:00]} 11. Rxe3 {[%emt 0:00:00]} Nf8 {[%emt 0:00:00]} 12. d4 {[%emt 0:00:00]} Ng6 {[%emt 0:00:00]} 13. Bf1 {[%emt 0:00:00]} (13. Ng5 {is interesting.} Re7 14. dxe5 Nxe5 15. Be2) 13... h6 {[%emt 0:00:00]} 14. a4 {[%emt 0:00:00]} a5 {[%emt 0:00:00]} 15. g3 {[%emt 0:00:00]} Be6 {[%emt 0:00:00]} 16. Bg2 {[%emt 0:00:00]} Qc7 {[%emt 0:00:00]} 17. Qe1 {[%emt 0:00:00]} Rad8 {[%emt 0:00:00]} 18. Rd1 {[%emt 0:00:00]} Bc4 {[%emt 0:00:00]} 19. b3 {[%emt 0:00:00]} Ba6 {[%emt 0:00:00]} 20. Kh2 {[%emt 0:00:00]} Re7 {[%emt 0:00:00]} 21. Rd2 {[%emt 0:00:00]} Ree8 {[%emt 0:00:00]} 22. Kg1 {[%emt 0:00:00]} c5 {[%emt 0:00:00]} (22... b6 $11 {keeps the balance.}) 23. d5 {[%emt 0:00:00]} (23. dxe5 $16 dxe5 24. Rxd8 Qxd8 25. Bf1) 23... c4 $11 {[%emt 0:00:10]} 24. Bf1 {[%emt 0:00:00]} cxb3 {[%emt 0:00:20]} 25. cxb3 {[%emt 0:00:00]} Bxf1 {[%emt 0:00:30]} (25... Ne7 $11) 26. Qxf1 $14 {[%emt 0:00:00]} Nd7 {[%emt 0:00:30]} 27. Nb5 {[%emt 0:00:00]} Qb8 {[%emt 0:00:30]} 28. Rc2 {[%emt 0:00:00]} Nc5 {[%emt 0:00:30]} 29. h4 {[%emt 0:00:00][%cal Bh3h4,Bh4h5][%mdl 32]} b6 {[%emt 0:05:30]} 30. h5 $36 {[%emt 0:00:00][%mdl 2048] White fights for an advantage.} Ne7 {[%emt 0:00:51]} 31. Nh4 {[%emt 0:00:00] Against f5} Qc8 {[%emt 0:00:59]} 32. f4 {[%emt 0:00:51]} exf4 {[%emt 0:03:00]} (32... Qg4 $11 33. Qe2 Qxe2 34. Rcxe2 Kh7) 33. Qxf4 $16 {[%emt 0:00:06]} Qd7 {[%emt 0:00:13][%cal Of7f5]} 34. Nd4 {[%emt 0:02:30] Prevents f5.} f6 {[%emt 0:00:30]} 35. Rh2 {[%emt 0:06:53]} (35. g4 $16) 35... Rf8 {[%emt 0:01:07]} (35... Rc8 $14) 36. g4 {[%emt 0:01:28]} Rde8 {[%emt 0:00:32]} 37. Rg2 {[%emt 0:01:22]} Rf7 {[%emt 0:00:59]} 38. Nhf5 {[%emt 0:00:48]} Nc8 {[%emt 0:00:52]} 39. Nh4 {[%emt 0:02:13] White is much more active.} (39. Rc2 $16) 39... Re5 {[%emt 0:00:17]} (39... Ne7 $1 $11) 40. Ng6 {[%emt 0:00:00]} (40. Nc6 $16) 40... Qe8 $2 {[%emt 0:00:00] [#] A mistake that costs the game.} (40... Ne7 $1 $11) 41. Nf5 $1 $18 {[%emt 0:03:30]} ({Don't go for} 41. Nxe5 $2 dxe5 42. Qg3 exd4 $19) 41... Qd8 {[%emt 0:06:13]} 42. Nxe5 {[%emt 0:01:30]} ({Inferior is} 42. Nxh6+ gxh6 43. Nxe5 dxe5 44. Qxh6 Rh7 45. Qg6+ Rg7 $15) 42... fxe5 {[%emt 0:03:03]} 43. Qg3 {[%emt 0:05:52] g5 is the strong threat.} Qg5 {[%emt 0:00:56]} 44. Rf2 {[%emt 0:00:10]} Kh7 {[%emt 0:04:50]} (44... Ne7 {keeps fighting.} 45. Nxe7+ (45. Nxd6 Rf4 $16) 45... Qxe7) 45. Kg2 {[%emt 0:08:38]} Rf8 {[%emt 0:07:05]} 46. Kh3 {[%emt 0:01:30]} Rf7 {[%emt 0:05:30]} 47. Rff3 {[%emt 0:00:50]} Qd8 {[%emt 0:01:53]} 48. Qh4 {[%emt 0:02:04]} Qd7 {[%emt 0:00:47]} (48... Qxh4+ $142 49. Kxh4 Rd7) 49. Kg2 {[%emt 0:02:47]} Ne7 {[%emt 0:05:02]} 50. Nxe7 {[%emt 0:05:34]} Rxe7 {[%emt 0:00:27]} 51. g5 {[%emt 0:00:15] [#] Rf8 would kill now.} hxg5 {[%emt 0:00:07]} 52. Qxg5 {[%emt 0:00:01] Threatening mate with Rf8.} Qe8 {[%emt 0:00:26] Prevents Rf8.} 53. Rf5 {[%emt 0:01:49] And now Qg4 would win.} Nd7 {[%emt 0:00:39]} 54. Rg3 {[%emt 0:00:18]} Nc5 {[%emt 0:00:46]} 55. Qg4 {[%emt 0:03:27]} Kh8 {[%emt 0:00:54] Weighted Error Value: White=0.12 (very precise) /Black=0.45} 1-0

[Event "55th Iranian-ch Men Final 2022"]
[Site "Iran"]
[Date "2022.06.22"]
[Round "10.1"]
[White "Mosadeghpour, Masoud"]
[Black "Khamisi, S Jafar"]
[Result "1-0"]
[ECO "C67"]
[WhiteElo "2474"]
[BlackElo "2118"]
[Annotator "TA"]
[PlyCount "79"]
[EventDate "2022.06.15"]
[EventType "tourn"]
[EventCountry "IRI"]
[SourceTitle "playchess.com"]
[Source "ChessBase"]
[SourceQuality "1"]
[TimeControl "40/5400+30:1800+30"]

{[%evp 14,79,0,0,0,10,4,16,7,0,8,-10,0,0,0,0,0,0,0,-39,0,0,0,0,0,-44,-36,-53,-35,-74,-9,-12,0,0,0,0,0,0,0,0,0,0,0,0,10,0,9,0,0,-8,0,0,0,0,672,399,349,324,324,324,324,324,493,462,368,424,1819,1501]} 1. e4 {[%emt 0:12:28]} e5 {[%emt 0:00:09]} 2. Nf3 {[%emt 0:01:01]} Nc6 {[%emt 0:00:23]} 3. Bb5 {[%emt 0:02:07]} Nf6 {[%emt 0:00:23]} 4. O-O {[%emt 0:01:04]} Nxe4 {[%emt 0:00:15]} 5. d4 {[%emt 0:03:06]} Nd6 {[%emt 0:00:28]} 6. dxe5 {[%emt 0:00:43]} Nxb5 {[%emt 0:00:27]} 7. a4 {[%emt 0:00:08]} d6 {[%emt 0:00:28]} 8. e6 {[%emt 0:01:32]} Bxe6 {[%emt 0:04:07][%cal Ob5a3] C67: Ruy Lopez: Berlin Defence: 4 0-0 Nxe4.} 9. axb5 {[%emt 0:01:12]} Ne5 {[%emt 0:00:56]} 10. Nd4 {[%emt 0:00:03]} Be7 {[%emt 0:02:17] The position is equal.} 11. f4 {[%emt 0:02:39]} Nc4 {[%emt 0:04:03]} 12. Nc3 {[%emt 0:00:37]} d5 {[%emt 0:17:57] [#]} 13. Re1 $146 {[%emt 0:30:21]} ({Predecessor:} 13. b3 Nb6 14. f5 Bd7 15. f6 Bxf6 16. Ba3 Be6 17. Nce2 Qd7 18. Nf4 Kd8 19. Bc5 {½-½ (47) Ivanauskas,R (2351)-Conde Poderoso,A (2371) ICCF email 2018}) 13... Bc5 {[%emt 0:21:57] [#] ...Qf6 is the strong threat.} 14. Na4 $1 {[%emt 0:11:34]} Bxd4+ {[%emt 0:03:18]} 15. Qxd4 {[%emt 0:00:08]} O-O $36 {[%emt 0:40:52][%mdl 2048] Black is more active.} 16. Nc5 {[%emt 0:01:36]} (16. b3 $5 {[%cal Rb3c4]} Nd6 17. Bb2 $11) 16... b6 {[%emt 0:00:00]} 17. Nxe6 {[%emt 0:03:10]} fxe6 {[%emt 0:00:00]} 18. b3 {[%emt 0:00:57]} Nd6 {[%emt 0:00:00]} 19. Rxe6 {[%emt 0:05:16]} (19. Bb2 $5 {[%cal Rd4g7]} Nf5 20. Qe5 $11) 19... Nxb5 {[%emt 0:00:00]} 20. Qe5 {[%emt 0:01:37]} c5 {[%emt 0:00:00]} (20... Rf7 $5 {[%cal Rc7c5]}) 21. Bb2 {[%emt 0:14:45][%csl Gb2][%cal Re5g7]} d4 {[%emt 0:00:00]} (21... Rf7 $17 {Threatens to win with ...Nc7.} 22. Qe2 Nc7) 22. Re7 $11 {[%emt 0:01:34][%csl Ge7][%cal Re5g7] Prevents Nc7.} Rf7 {[%emt 0:00:00]} 23. Rxf7 {[%emt 0:01:17]} Kxf7 {[%emt 0:00:00]} 24. b4 {[%emt 0:00:07]} ({Much weaker is} 24. Qe2 Qe8 25. Qf1 Rc8 $17) 24... Rc8 {[%emt 0:00:00]} 25. c4 {[%emt 0:00:53]} dxc3 $1 {[%emt 0:00:00]} 26. Bxc3 {[%emt 0:00:07]} Qf6 {[%emt 0:00:00]} 27. Qh5+ {[%emt 0:02:08]} ({Reject} 27. Qd5+ Qe6 28. Qh5+ Kg8 $15) 27... Qg6 {[%emt 0:00:00]} 28. Qh3 {[%emt 0:01:38]} Rd8 {[%emt 0:00:00] And now ...Qd3 would win.} 29. bxc5 {[%emt 0:00:32]} bxc5 {[%emt 0:00:00]} 30. f5 {[%emt 0:00:37]} Qd6 {[%emt 0:00:46]} 31. Qxh7 {[%emt 0:00:29]} Nxc3 {[%emt 0:02:46]} 32. Rxa7+ {[%emt 0:00:17]} Rd7 {[%emt 0:00:18]} 33. Qh5+ {[%emt 0:00:12]} Kf6 $2 {[%emt 0:03:47][%mdl 8192] [#]} (33... Ke7 $11 34. Qg5+ Kf7 35. Qh5+ Ke7 36. Qg5+ Kf7 37. Qh5+) 34. Ra6 $3 {[%emt 0:00:27][%mdl 512]} Qxa6 {[%emt 0:00:36]} 35. Qg6+ {[%emt 0:00:07][%mdl 64] Skewer} Ke5 {[%emt 0:00:11] ( -> ...Qa1+)} 36. Qxa6 {[%emt 0:00:03] Hoping for Qe6+.} Rd1+ {[%emt 0:00:38]} 37. Kf2 {[%emt 0:00:20]} Ne4+ {[%emt 0:00:30]} (37... Kxf5 $142 38. Qc8+ Ke4 39. Qxc5 Rd2+ 40. Kg3 Nd5 41. Qc4+ Rd4 42. Qe2+ Kf5 43. Qc2+ Ke6 44. Qg6+ Nf6) 38. Ke2 $18 {[%emt 0:01:02]} Nc3+ {[%emt 0:00:43]} 39. Kf3 {[%emt 0:00:32] Strongly threatening Qc4.} Nd5 {[%emt 0:01:03]} (39... Kd4 $142 40. Qa7 Rf1+ 41. Kg4 Ne4 42. Qxg7+ Kd3) 40. Qe2+ {[%emt 0:00:00] Weighted Error Value: White=0.19 (very precise) /Black=0.44} 1-0

[Event "55th Iranian-ch Men Final 2022"]
[Site "Iran"]
[Date "2022.06.22"]
[Round "10.3"]
[White "Daghli, Arash"]
[Black "Atakhan, Abtin"]
[Result "1-0"]
[ECO "A22"]
[WhiteElo "2441"]
[BlackElo "2358"]
[Annotator "TA"]
[PlyCount "121"]
[EventDate "2022.06.15"]
[EventType "tourn"]
[EventCountry "IRI"]
[SourceTitle "playchess.com"]
[Source "ChessBase"]
[SourceQuality "1"]
[TimeControl "40/5400+30:1800+30"]

{[%evp 12,121,-4,-2,0,-14,19,-38,-30,-28,-36,-35,-22,-36,-18,-23,0,0,0,0,0,8,8,0,0,0,8,8,8,14,14,10,14,8,22,12,22,22,22,22,45,56,67,90,81,77,133,66,61,55,143,75,75,75,75,75,100,100,100,93,100,100,180,125,112,129,141,143,141,107,98,85,79,61,111,111,111,118,121,114,118,123,122,116,283,173,247,183,183,183,1039,987,1139,1133,2240,1697,2383,2189,4614,2792,29972,29974,29978,29979,29979,29980,29980,29981,29990,29986,29986,29987]} 1. c4 {[%emt 0:10:00]} e5 {[%emt 0:03:54]} 2. Nc3 {[%emt 0:00:18]} Nf6 {[%emt 0:00:19]} 3. g3 {[%emt 0:02:23]} Bb4 {[%emt 0:06:45]} 4. Bg2 {[%emt 0:02:23]} O-O {[%emt 0:00:44]} 5. e4 {[%emt 0:00:34]} Bxc3 {[%emt 0:00:11]} 6. dxc3 {[%emt 0:00:44]} d6 {[%emt 0:01:02]} 7. Qe2 {[%emt 0:03:27]} a6 {[%emt 0:04:16] 7...a5 gains popularity. A22: English Opening: 1...e5 2 Nc3 Nf6.} 8. a4 {[%emt 0:01:55]} Nbd7 {[%emt 0:05:09]} 9. Nf3 {[%emt 0:00:38]} (9. a5 $11) 9... Nc5 $15 {[%emt 0:20:41] Black is slightly better.} 10. Nd2 {[%emt 0:01:19]} a5 {[%emt 0:04:28]} 11. b3 {[%emt 0:11:29] [#]} Bg4 $146 {[%emt 0:07:18]} ({Predecessor:} 11... b6 12. Rb1 Bb7 13. O-O Re8 14. Rd1 Rb8 15. f3 c6 16. Nf1 h6 17. Ne3 Qc7 {½-½ (30) Schlemermeyer,W-Anbuhl,E Germany 1980}) 12. Qe3 {[%emt 0:03:12]} Qd7 {[%emt 0:04:54]} 13. Ba3 {[%emt 0:01:11]} Bh3 {[%emt 0:01:35]} 14. Bxh3 {[%emt 0:08:25]} Qxh3 {[%emt 0:01:45]} 15. Bxc5 {[%emt 0:00:13]} Ng4 {[%emt 0:02:43]} 16. Qe2 {[%emt 0:00:36][%cal Of2f3] And now f3! would win.} dxc5 {[%emt 0:00:40]} 17. O-O-O {[%emt 0:03:54]} Rad8 {[%emt 0:08:10]} 18. f3 {[%emt 0:05:37]} Nf6 {[%emt 0:00:52]} 19. Rhe1 {[%emt 0:02:35]} Rd7 {[%emt 0:06:30]} 20. Nf1 {[%emt 0:00:27][%cal Bd2f1,Bf1e3,Be3d1,Bd1f2,Bf2d3][%mdl 32]} Rfd8 {[%emt 0:00:09]} 21. Rxd7 {[%emt 0:00:16]} Rxd7 {[%emt 0:00:59]} 22. Ne3 {[%emt 0:00:37]} c6 {[%emt 0:00:27]} 23. Kc2 {[%emt 0:04:34]} Qe6 {[%emt 0:02:19]} 24. Nd1 {[%emt 0:04:02]} Ne8 {[%emt 0:01:01]} 25. Nf2 {[%emt 0:00:37]} Nc7 {[%emt 0:02:18]} 26. Nd3 {[%emt 0:00:19]} Qe7 {[%emt 0:00:54]} 27. f4 {[%emt 0:01:32]} exf4 {[%emt 0:01:23]} 28. gxf4 {[%emt 0:00:09]} Rd8 {[%emt 0:00:50]} (28... f6 $142) 29. Qe3 {[%emt 0:01:57]} (29. f5 $16) 29... b6 $14 {[%emt 0:00:00]} 30. f5 {[%emt 0:01:53]} Qh4 {[%emt 0:03:45]} (30... f6 $14) 31. Qg3 {[%emt 0:04:17]} ({White should play} 31. h3 $1) 31... Qxg3 $16 {[%emt 0:00:40]} 32. hxg3 {[%emt 0:00:01][%mdl 4096] Endgame KRN-KRN} Na6 {[%emt 0:00:24]} 33. e5 {[%emt 0:02:57]} Nc7 {[%emt 0:03:25]} 34. g4 {[%emt 0:01:05]} Kf8 {[%emt 0:01:18]} 35. Rb1 {[%emt 0:00:30]} Ke7 {[%emt 0:02:03]} 36. Kd2 {[%emt 0:10:50]} Na6 {[%emt 0:02:35]} (36... h6 $16 {was necessary.}) 37. Ke3 {[%emt 0:00:27]} (37. g5 $1 $18) 37... h6 {[%emt 0:00:25]} 38. b4 {[%emt 0:11:25]} cxb4 {[%emt 0:00:10]} 39. cxb4 {[%emt 0:00:00]} axb4 {[%emt 0:00:52]} 40. Nxb4 {[%emt 0:00:00]} Nb8 {[%emt 0:00:00]} 41. Nd3 {[%emt 0:23:04]} Nd7 {[%emt 0:00:12]} 42. c5 {[%emt 0:03:23]} Nxc5 {[%emt 0:05:49]} (42... bxc5 $14 43. Rb7 Ke8) 43. Nxc5 {[%emt 0:00:04]} bxc5 $14 {[%emt 0:00:01] KR-KR} 44. a5 $1 {[%emt 0:00:22][%cal Ba4a5,Ba5a6][%mdl 32]} c4 {[%emt 0:00:51]} 45. a6 {[%emt 0:00:53]} c3 {[%emt 0:01:14] [#]} 46. Rb7+ $1 {[%emt 0:00:40]} Ke8 {[%emt 0:06:57] ( -> ...c2)} 47. Rc7 {[%emt 0:00:01]} c5 {[%emt 0:03:27] Loses the game.} (47... c2 $16 48. Rxc6 Rd5) 48. Rxc5 $18 {[%emt 0:03:36]} Ra8 {[%emt 0:00:20]} 49. Rc6 {[%emt 0:00:21] Threatens to win with Kd3.} ({Worse is} 49. Rxc3 Rxa6 50. Rc4 Kd7 $11) 49... Kd7 {[%emt 0:00:57] [#]} 50. Rd6+ {[%emt 0:00:33]} ({Weaker is} 50. Rxc3 Rxa6 51. Rc4 Ra1 $11) 50... Kc7 $2 {[%emt 0:09:32]} (50... Ke7 51. Kd3 Rc8) 51. Kd3 {[%emt 0:00:00]} Re8 {[%emt 0:00:13]} 52. a7 {[%emt 0:00:59] aiming for Ra6.} Ra8 {[%emt 0:01:47]} 53. Ra6 {[%emt 0:00:03]} Kb7 {[%emt 0:00:59]} 54. Ra1 {[%emt 0:01:22]} Rd8+ {[%emt 0:01:41]} 55. Kxc3 {[%emt 0:00:01]} Ka8 {[%emt 0:00:07]} 56. Kc4 {[%emt 0:00:27] White mates.} g6 {[%emt 0:01:21]} 57. Kc5 {[%emt 0:00:37]} Re8 {[%emt 0:00:53]} 58. Kd6 {[%emt 0:00:27]} h5 {[%emt 0:00:01]} 59. e6 {[%emt 0:01:24]} gxf5 {[%emt 0:00:43]} 60. gxf5 {[%emt 0:00:44][%cal Bg4f5,Bf5f6][%mdl 32]} fxe6 {[%emt 0:00:05]} 61. f6 {[%emt 0:00:41] Weighted Error Value: White=0.09 (flawless) /Black=0.32} 1-0